fUST/lending_fUST_20250725
["ID","MTS","AMOUNT","RATE_DAILY","PERIOD"]
[374621958,1753383050193,-153.0,0.00022438,2]
[374621959,1753383050202,-1155.310423,0.00022438,2]
[374621960,1753383050212,-159.9507963,0.00022438,2]
[374621961,1753383050223,-159.9507963,0.00022438,2]
[374621962,1753383050234,-153.0,0.00022438,2]
[374621963,1753383050245,-577.6552115,0.00022438,2]
[374621964,1753383050255,-178.2667198,0.00022438,2]
[374621965,1753383050266,-577.6552115,0.00022438,2]
[374621966,1753383050277,-159.9507963,0.00022438,2]
[374621967,1753383050287,-178.2667198,0.00022438,2]
[374621968,1753383050300,-153.0,0.00022438,2]
[374621969,1753383050401,-577.6552115,0.00022438,2]
[374621970,1753383050412,-178.2667198,0.00022438,2]
[374621971,1753383050423,-159.9507963,0.00022438,2]
[374621972,1753383050433,-178.2667198,0.00022438,2]
[374621973,1753383050443,-159.9507963,0.00022438,2]
[374621974,1753383050453,-1035.6901492,0.00022438,2]
[374621975,1753383050463,-159.9507963,0.00022438,2]
[374621976,1753383050473,-178.2667198,0.00022438,2]
[374621977,1753383050482,-153.0,0.00022438,2]
[374621978,1753383050492,-159.9507963,0.00022438,2]
[374621979,1753383050502,-178.2667198,0.00022438,2]
[374621980,1753383050512,-178.2667198,0.00022438,2]
[374621981,1753383050521,-159.2354349,0.00022438,2]
[374621982,1753383050531,-178.2667198,0.00022438,2]
[374621983,1753383050540,-1619.23,0.00022465,2]
[374621984,1753383050550,-500.0,0.00022473,2]
[374621985,1753383050560,-500.0,0.00022473,2]
[374621986,1753383050570,-76562.8406976,0.00022473,2]
[374621987,1753383050579,-151.0,0.00022473,7]
[374621988,1753383050589,-151.0,0.00022473,7]
[374621989,1753383050598,-324509.29404856,0.0002249,7]
[374621990,1753383050751,-798.4,0.00019617,3]
[374621991,1753383050762,-460.0,0.00019627,2]
[374621992,1753383050772,-460.0,0.00019901,2]
[374621993,1753383050782,-2099.41446179,0.0002249,7]
[374621994,1753383050798,-71442.0,0.0002249,7]
[374621995,1753383050973,-460.0,0.00019627,2]
[374621996,1753383050982,-81.65,0.00019627,2]
[374621997,1753383227441,10000.0,0.00018764,2]
[374621998,1753383264445,255.0,0.00018819,2]
[374621999,1753383287079,408.08656216,0.00018787,2]
[374622000,1753383287101,1773.81396274,0.00018787,2]
[374622001,1753383389088,1891.3025617,0.00018626,2]
[374622002,1753383412327,193.137719,0.00013699,2]
[374622003,1753383416335,12849.7476061,0.00018626,2]
[374622005,1753383478240,199.5862399,0.00018623,2]
[374622006,1753383478695,297.143896,0.00018623,2]
[374622008,1753383574908,2872.0398109,0.00018623,2]
[374622012,1753383673301,9923.22820366,0.00018621,2]
[374622013,1753383673324,14976.77179634,0.00018621,2]
[374622014,1753383688859,2765.02157326,0.00019,2]
[374622018,1753383965214,12258.2066304,0.00018767,2]
[374622019,1753383965740,17212.3509092,0.00018767,2]
[374622020,1753383977609,12787.6490908,0.00018618,2]
[374622021,1753383977631,30000.0,0.00018618,2]
[374622022,1753383977651,30000.0,0.00018618,2]
[374622023,1753383977675,26330.2831616,0.00018618,2]
[374622024,1753384010015,3669.7168384,0.00018618,2]
[374622025,1753384010038,3446.2709102,0.00018618,2]
[374622026,1753384029667,-175.72692798,0.00019036,2]
[374622027,1753384029693,-292.8782133,0.00019038,2]
[374622028,1753384029715,-2423.61909791,0.00019178,2]
[374622029,1753384047150,-815.13678281,0.00019178,2]
[374622030,1753384061718,903.38503609,0.000189,2]
[374622069,1753384232415,-1436.581261,0.00019178,2]
[374622073,1753384232469,-324.66285828,0.00019178,2]
[374622075,1753384232478,-160.0,0.00019611,2]
[374622076,1753384232488,-77.53006152,0.00019615,2]
[374622079,1753384232499,-114.16485811,0.00019615,2]
[374622081,1753384232508,-191.62,0.00019617,3]
[374622082,1753384232517,-574.86,0.00019617,3]
[374622084,1753384232527,-101.79753053,0.00019618,2]
[374622087,1753384232538,-484.62977369,0.00019618,2]
[374622088,1753384232548,-500.0,0.00019618,2]
[374622090,1753384232557,-398.7715341,0.00019618,2]
[374622092,1753384232566,-14.29381813,0.00019618,2]
[374622095,1753384232582,-485.70618187,0.00019618,2]
[374622097,1753384232591,-500.0,0.00019618,2]
[374622098,1753384232600,-339.57026743,0.00019618,2]
[374622298,1753384238292,-160.42973257,0.00019618,2]
[374622300,1753384238302,-429.21756764,0.00019618,2]
[374622302,1753384238314,-70.78243236,0.00019618,2]
[374622304,1753384238324,-243.74401539,0.00019618,2]
[374622306,1753384238333,-500.0,0.00019618,2]
[374622308,1753384238343,-500.0,0.00019618,2]
[374622310,1753384238354,-500.0,0.00019618,2]
[374622312,1753384238364,-500.0,0.00019618,2]
[374622314,1753384238374,-500.0,0.00019618,2]
[374622316,1753384238385,-500.0,0.00019618,2]
[374622318,1753384238395,-500.0,0.00019618,2]
[374622320,1753384238405,-500.0,0.00019618,2]
[374622322,1753384238414,-84.52789245,0.00019618,2]
[374622337,1753384238570,-415.47210755,0.00019618,2]
[374622339,1753384238579,-500.0,0.00019618,2]
[374622341,1753384238589,-500.0,0.00019618,2]
[374622343,1753384238599,-500.0,0.00019618,2]
[374622344,1753384238608,-500.0,0.00019618,2]
[374622346,1753384238618,-500.0,0.00019618,2]
[374622348,1753384238628,-500.0,0.00019618,2]
[374622350,1753384238638,-500.0,0.00019618,2]
[374622353,1753384238650,-500.0,0.00019618,2]
[374622355,1753384238660,-500.0,0.00019618,2]
[374622357,1753384238670,-500.0,0.00019618,2]
[374622358,1753384238679,-500.0,0.00019618,2]
[374622360,1753384238689,-500.0,0.00019618,2]
[374622363,1753384238699,-192.28221229,0.00019618,2]
[374622365,1753384238709,-500.0,0.00019618,2]
[374622367,1753384238720,-500.0,0.00019618,2]
[374622369,1753384238729,-500.0,0.00019618,2]
[374622370,1753384238738,-516.67604571,0.00019618,2]
[374622372,1753384238748,-300.0,0.00019618,2]
[374622374,1753384238757,-300.0,0.00019618,2]
[374622376,1753384238766,-300.0,0.00019618,2]
[374622378,1753384238777,-300.0,0.00019618,2]
[374622380,1753384238787,-1200.0,0.00019618,2]
[374622382,1753384238797,-14031.36269767,0.00019619,2]
[374622384,1753384238806,-155.0,0.00019626,2]
[374622385,1753384238816,-370.62168657,0.00019627,2]
[374622386,1753384238825,-460.0,0.00019627,2]
[374622387,1753384238835,-460.0,0.00019627,2]
[374622389,1753384238844,-460.0,0.00019627,2]
[374622390,1753384238854,-461.16201749,0.00019627,2]
[374622391,1753384238864,-460.0,0.00019627,2]
[374622392,1753384238873,-460.0,0.00019627,2]
[374622393,1753384238883,-500.0,0.00019627,2]
[374622394,1753384238892,-460.0,0.00019627,2]
[374622395,1753384238901,-460.0,0.00019627,2]
[374622396,1753384238911,-460.0,0.00019627,2]
[374622397,1753384238920,-460.0,0.00019627,2]
[374622398,1753384238931,-460.0,0.00019627,2]
[374622399,1753384238943,-464.03509383,0.00019627,2]
[374622400,1753384238955,-460.0,0.00019627,2]
[374622401,1753384238964,-460.0,0.00019627,2]
[374622402,1753384238974,-460.0,0.00019627,2]
[374622403,1753384238984,-460.0,0.00019627,2]
[374622404,1753384238994,-339.57818452,0.00019627,2]
[374622405,1753384239003,-460.0,0.00019627,2]
[374622406,1753384239013,-460.0,0.00019627,2]
[374622407,1753384239023,-462.11523564,0.00019627,2]
[374622408,1753384239033,-460.0,0.00019627,2]
[374622409,1753384239043,-460.0,0.00019627,2]
[374622410,1753384239052,-460.0,0.00019627,2]
[374622411,1753384239062,-460.0,0.00019627,2]
[374622412,1753384239072,-460.0,0.00019627,2]
[374622413,1753384239082,-460.0,0.00019627,2]
[374622414,1753384239092,-460.0,0.00019627,2]
[374622415,1753384239102,-500.0,0.00019627,2]
[374622416,1753384239113,-460.0,0.00019627,2]
[374622417,1753384239123,-460.0,0.00019627,2]
[374622418,1753384239135,-460.0,0.00019627,2]
[374622419,1753384239144,-460.0,0.00019627,2]
[374622420,1753384239154,-460.0,0.00019627,2]
[374622421,1753384239163,-460.0,0.00019627,2]
[374622422,1753384239172,-460.0,0.00019627,2]
[374622423,1753384239182,-460.0,0.00019627,2]
[374622424,1753384239191,-616.64859188,0.00019627,2]
[374622425,1753384239201,-460.0,0.00019627,2]
[374622426,1753384239211,-460.0,0.00019627,2]
[374622427,1753384239221,-460.0,0.00019627,2]
[374622428,1753384239230,-460.0,0.00019627,2]
[374622429,1753384239240,-460.0,0.00019627,2]
[374622430,1753384239251,-460.0,0.00019627,2]
[374622431,1753384239260,-460.0,0.00019627,2]
[374622432,1753384239269,-460.0,0.00019627,2]
[374622433,1753384239280,-460.0,0.00019627,2]
[374622434,1753384239288,-460.0,0.00019627,2]
[374622435,1753384239297,-460.0,0.00019627,2]
[374622436,1753384239306,-460.0,0.00019627,2]
[374622437,1753384239315,-460.0,0.00019627,2]
[374622438,1753384239324,-460.0,0.00019627,2]
[374622439,1753384239333,-460.0,0.00019627,2]
[374622440,1753384239343,-460.0,0.00019627,2]
[374622441,1753384239352,-460.0,0.00019627,2]
[374622442,1753384239361,-460.0,0.00019627,2]
[374622443,1753384239371,-1245.07,0.00019627,2]
[374622444,1753384239380,-460.0,0.00019627,2]
[374622445,1753384239388,-460.0,0.00019627,2]
[374622446,1753384239398,-460.0,0.00019627,2]
[374622447,1753384239407,-877.44,0.00019627,2]
[374622448,1753384239416,-378.35,0.00019627,2]
[374622449,1753384239425,-460.0,0.00019627,2]
[374622450,1753384239435,-460.0,0.00019627,2]
[374622451,1753384239444,-463.65288381,0.00019627,2]
[374622452,1753384239453,-460.0,0.00019627,2]
[374622453,1753384239462,-460.0,0.00019627,2]
[374622454,1753384239471,-460.0,0.00019627,2]
[374622455,1753384239481,-460.0,0.00019627,2]
[374622456,1753384239493,-460.0,0.00019627,2]
[374622457,1753384239502,-460.0,0.00019627,2]
[374622458,1753384239511,-464.96305068,0.00019627,2]
[374622459,1753384239520,-460.0,0.00019627,2]
[374622460,1753384239530,-460.0,0.00019627,2]
[374622461,1753384239540,-460.0,0.00019627,2]
[374622462,1753384239549,-460.0,0.00019627,2]
[374622463,1753384239559,-460.0,0.00019627,2]
[374622464,1753384239569,-264.69919789,0.00019627,2]
[374622465,1753384239579,-460.0,0.00019627,2]
[374622466,1753384239588,-460.0,0.00019627,2]
[374622467,1753384239597,-460.0,0.00019627,2]
[374622468,1753384239606,-460.0,0.00019627,2]
[374622469,1753384239615,-460.0,0.00019627,2]
[374622470,1753384239624,-460.0,0.00019627,2]
[374622471,1753384239634,-460.0,0.00019627,2]
[374622472,1753384239645,-460.0,0.00019627,2]
[374622473,1753384239655,-460.0,0.00019627,2]
[374622474,1753384239665,-460.0,0.00019627,2]
[374622475,1753384239674,-460.0,0.00019627,2]
[374622476,1753384239683,-460.0,0.00019627,2]
[374622477,1753384239694,-460.0,0.00019627,2]
[374622478,1753384239704,-460.0,0.00019627,2]
[374622479,1753384239713,-460.0,0.00019627,2]
[374622480,1753384239726,-460.0,0.00019627,2]
[374622481,1753384239738,-864.25,0.00019627,2]
[374622482,1753384239749,-460.0,0.00019627,2]
[374622483,1753384239759,-460.0,0.00019627,2]
[374622484,1753384239770,-460.0,0.00019627,2]
[374622485,1753384239780,-454.63921108,0.00019627,2]
[374622486,1753384239790,-460.0,0.00019627,2]
[374622487,1753384239800,-460.0,0.00019627,2]
[374622488,1753384239811,-460.0,0.00019627,2]
[374622489,1753384239821,-460.0,0.00019627,2]
[374622490,1753384239830,-460.0,0.00019627,2]
[374622491,1753384239839,-460.0,0.00019627,2]
[374622492,1753384239848,-460.0,0.00019627,2]
[374622493,1753384239864,-460.0,0.00019627,2]
[374622494,1753384239883,-460.0,0.00019627,2]
[374622495,1753384239906,-462.25412767,0.00019627,2]
[374622496,1753384239928,-460.0,0.00019627,2]
[374622497,1753384239951,-553.18,0.00019627,2]
[374622498,1753384239973,-460.0,0.00019627,2]
[374622499,1753384239994,-460.0,0.00019627,2]
[374622500,1753384240015,-460.0,0.00019627,2]
[374622501,1753384240036,-400.40905759,0.00019627,2]
[374622503,1753384240060,-460.0,0.00019627,2]
[374622504,1753384240077,-460.0,0.00019627,2]
[374622505,1753384240087,-460.0,0.00019627,2]
[374622506,1753384240096,-460.0,0.00019627,2]
[374622507,1753384240105,-460.0,0.00019627,2]
[374622508,1753384240115,-460.0,0.00019627,2]
[374622509,1753384240124,-359.59110591,0.00019627,2]
[374622510,1753384240135,-460.0,0.00019627,2]
[374622511,1753384240145,-465.64,0.00019627,2]
[374622512,1753384240155,-460.0,0.00019627,2]
[374622513,1753384240164,-460.0,0.00019627,2]
[374622514,1753384240174,-460.0,0.00019627,2]
[374622516,1753384240183,-460.0,0.00019627,2]
[374622517,1753384240193,-460.0,0.00019627,2]
[374622518,1753384240202,-460.0,0.00019627,2]
[374622519,1753384240212,-460.0,0.00019627,2]
[374622520,1753384240220,-460.0,0.00019627,2]
[374622521,1753384240230,-460.0,0.00019627,2]
[374622522,1753384240240,-1113.47,0.00019627,2]
[374622523,1753384240249,-462.21027629,0.00019627,2]
[374622524,1753384240259,-461.80732137,0.00019627,2]
[374622525,1753384240269,-480.73,0.00019627,2]
[374622526,1753384240280,-461.31,0.00019627,2]
[374622528,1753384240290,-460.0,0.00019627,2]
[374622529,1753384240300,-479.39154465,0.00019627,2]
[374622530,1753384240311,-363.69608515,0.00019627,2]
[374622531,1753384240320,-460.0,0.00019627,2]
[374622532,1753384240330,-533.10150346,0.00019627,2]
[374622534,1753384240339,-460.0,0.00019627,2]
[374622536,1753384240348,-460.0,0.00019627,2]
[374622537,1753384240358,-460.0,0.00019627,2]
[374622539,1753384240369,-460.0,0.00019627,2]
[374622540,1753384240380,-510.44,0.00019627,2]
[374622541,1753384240389,-460.0,0.00019627,2]
[374622542,1753384240507,-460.0,0.00019627,2]
[374622543,1753384240519,-460.0,0.00019627,2]
[374622544,1753384240529,-460.0,0.00019627,2]
[374622545,1753384240538,-460.0,0.00019627,2]
[374622546,1753384240548,-460.0,0.00019627,2]
[374622547,1753384240558,-460.0,0.00019627,2]
[374622548,1753384240567,-464.72,0.00019627,2]
[374622549,1753384240577,-464.58615465,0.00019627,2]
[374622550,1753384240586,-460.0,0.00019627,2]
[374622551,1753384240595,-460.0,0.00019627,2]
[374622552,1753384240604,-460.0,0.00019627,2]
[374622553,1753384240614,-460.0,0.00019627,2]
[374622554,1753384240623,-460.0,0.00019627,2]
[374622555,1753384240632,-404.31501019,0.00019627,2]
[374622556,1753384240642,-460.0,0.00019627,2]
[374622557,1753384240654,-460.0,0.00019627,2]
[374622558,1753384240664,-460.0,0.00019627,2]
[374622559,1753384240673,-920.18,0.00019627,2]
[374622560,1753384240682,-168.98431095,0.00019627,2]
[374622561,1753384240693,-460.0,0.00019627,2]
[374622562,1753384240703,-460.0,0.00019627,2]
[374622563,1753384240712,-460.0,0.00019627,2]
[374622564,1753384240723,-463.18449326,0.00019627,2]
[374622565,1753384240732,-460.0,0.00019627,2]
[374622566,1753384240742,-460.0,0.00019627,2]
[374622567,1753384240751,-460.50614141,0.00019627,2]
[374622568,1753384240760,-3132.28,0.00019627,2]
[374622569,1753384240770,-460.0,0.00019627,2]
[374622570,1753384240781,-460.0,0.00019627,2]
[374622571,1753384240790,-460.0,0.00019627,2]
[374622572,1753384240800,-460.0,0.00019627,2]
[374622573,1753384240809,-460.0,0.00019627,2]
[374622574,1753384240818,-460.0,0.00019627,2]
[374622575,1753384240827,-460.0,0.00019627,2]
[374622576,1753384240836,-460.0,0.00019627,2]
[374622577,1753384240846,-460.0,0.00019627,2]
[374622578,1753384240856,-3148.8,0.00019627,2]
[374622579,1753384240865,-460.0,0.00019627,2]
[374622580,1753384240875,-460.0,0.00019627,2]
[374622581,1753384240884,-1325.74,0.00019627,2]
[374622582,1753384240894,-460.0,0.00019627,2]
[374622583,1753384240903,-460.0,0.00019627,2]
[374622584,1753384240912,-460.0,0.00019627,2]
[374622585,1753384240921,-460.0,0.00019627,2]
[374622586,1753384240931,-460.0,0.00019627,2]
[374622587,1753384240940,-460.0,0.00019627,2]
[374622588,1753384240949,-460.0,0.00019627,2]
[374622589,1753384240960,-460.0,0.00019627,2]
[374622590,1753384240969,-205.89505864,0.00019627,2]
[374622591,1753384240979,-460.0,0.00019627,2]
[374622592,1753384240988,-460.0,0.00019627,2]
[374622593,1753384240997,-461.93004898,0.00019627,2]
[374622594,1753384241006,-460.0,0.00019627,2]
[374622595,1753384241015,-460.0,0.00019627,2]
[374622596,1753384241025,-460.0,0.00019627,2]
[374622597,1753384241035,-801.02,0.00019627,2]
[374622598,1753384241044,-460.0,0.00019627,2]
[374622599,1753384241054,-460.0,0.00019627,2]
[374622600,1753384241063,-1262.05,0.00019627,2]
[374622601,1753384241073,-460.0,0.00019627,2]
[374622602,1753384241081,-593.42312737,0.00019627,2]
[374622603,1753384241091,-460.0,0.00019627,2]
[374622604,1753384241100,-610.09,0.00019627,2]
[374622605,1753384241109,-460.0,0.00019627,2]
[374622606,1753384241119,-461.5477359,0.00019627,2]
[374622607,1753384241129,-460.0,0.00019627,2]
[374622608,1753384241138,-2655.55,0.00019627,2]
[374622609,1753384241147,-461.01274665,0.00019627,2]
[374622610,1753384241156,-872.2,0.00019627,2]
[374622611,1753384241165,-462.85014543,0.00019627,2]
[374622612,1753384241174,-464.15887937,0.00019627,2]
[374622613,1753384241184,-460.0,0.00019627,2]
[374622614,1753384241193,-460.0,0.00019627,2]
[374622615,1753384241203,-460.0,0.00019627,2]
[374622616,1753384241212,-460.0,0.00019627,2]
[374622617,1753384241221,-578.37340759,0.00019627,2]
[374622618,1753384241231,-4546.8,0.00019627,2]
[374622619,1753384241239,-460.0,0.00019627,2]
[374622620,1753384241249,-460.0,0.00019627,2]
[374622621,1753384241258,-2803.82,0.00019627,2]
[374622622,1753384241269,-460.0,0.00019627,2]
[374622623,1753384241279,-460.0,0.00019627,2]
[374622624,1753384241289,-460.0,0.00019627,2]
[374622625,1753384241299,-838.8,0.00019627,2]
[374622626,1753384241308,-202.86026692,0.00019627,2]
[374622627,1753384241319,-460.0,0.00019627,2]
[374622628,1753384241329,-460.0,0.00019627,2]
[374622629,1753384241338,-460.0,0.00019627,2]
[374622630,1753384241347,-460.0,0.00019627,2]
[374622631,1753384241356,-460.0,0.00019627,2]
[374622632,1753384241365,-460.0,0.00019627,2]
[374622633,1753384241374,-460.0,0.00019627,2]
[374622634,1753384241384,-460.0,0.00019627,2]
[374622635,1753384241393,-460.0,0.00019627,2]
[374622636,1753384241403,-460.0,0.00019627,2]
[374622637,1753384241412,-684.53,0.00019627,2]
[374622638,1753384241421,-460.0,0.00019627,2]
[374622639,1753384241430,-2888.36,0.00019627,2]
[374622640,1753384241440,-460.0,0.00019627,2]
[374622641,1753384241449,-460.0,0.00019627,2]
[374622642,1753384241459,-460.0,0.00019627,2]
[374622643,1753384241469,-460.0,0.00019627,2]
[374622644,1753384241478,-460.0,0.00019627,2]
[374622645,1753384241487,-460.0,0.00019627,2]
[374622646,1753384241496,-1671.5,0.00019627,2]
[374622647,1753384241506,-1152.42,0.00019627,2]
[374622648,1753384241515,-462.97622952,0.00019627,2]
[374622649,1753384241524,-1006.82,0.00019627,2]
[374622650,1753384241533,-1310.29,0.00019627,2]
[374622651,1753384241542,-496.19713642,0.00019627,2]
[374622652,1753384241551,-460.0,0.00019627,2]
[374622653,1753384241562,-460.0,0.00019627,2]
[374622654,1753384241571,-460.0,0.00019627,2]
[374622655,1753384241580,-460.0,0.00019627,2]
[374622656,1753384241589,-460.0,0.00019627,2]
[374622657,1753384241599,-2883.24,0.00019627,2]
[374622658,1753384241609,-511.3229766,0.00019627,2]
[374622659,1753384241620,-580.47,0.00019627,2]
[374622660,1753384241630,-460.0,0.00019627,2]
[374622661,1753384241640,-460.0,0.00019627,2]
[374622662,1753384241654,-460.0,0.00019627,2]
[374622663,1753384241664,-460.0,0.00019627,2]
[374622664,1753384241673,-753.75,0.00019627,2]
[374622665,1753384241682,-460.0,0.00019627,2]
[374622666,1753384241693,-460.0,0.00019627,2]
[374622667,1753384241705,-460.0,0.00019627,2]
[374622668,1753384241715,-987.14,0.00019627,2]
[374622669,1753384241725,-460.0,0.00019627,2]
[374622670,1753384241735,-662.47,0.00019627,2]
[374622671,1753384241746,-663.42,0.00019627,2]
[374622672,1753384241756,-460.0,0.00019627,2]
[374622673,1753384241766,-191.8188262,0.00019627,2]
[374622674,1753384241778,-894.42,0.00019627,2]
[374622675,1753384241787,-460.0,0.00019627,2]
[374622676,1753384241796,-460.0,0.00019627,2]
[374622677,1753384241808,-460.0,0.00019627,2]
[374622678,1753384241819,-460.0,0.00019627,2]
[374622679,1753384241830,-460.0,0.00019627,2]
[374622680,1753384241840,-767.36,0.00019627,2]
[374622681,1753384241850,-460.0,0.00019627,2]
[374622682,1753384241859,-460.0,0.00019627,2]
[374622683,1753384241868,-460.0,0.00019627,2]
[374622684,1753384241877,-460.0,0.00019627,2]
[374622685,1753384241886,-593.18229705,0.00019627,2]
[374622686,1753384241896,-460.0,0.00019627,2]
[374622687,1753384241905,-460.0,0.00019627,2]
[374622688,1753384241915,-460.0,0.00019627,2]
[374622689,1753384241924,-460.0,0.00019627,2]
[374622690,1753384241933,-3602.07,0.00019627,2]
[374622691,1753384241943,-460.0,0.00019627,2]
[374622692,1753384241952,-499.28,0.00019627,2]
[374622693,1753384241962,-858.77,0.00019627,2]
[374622694,1753384241971,-460.0,0.00019627,2]
[374622695,1753384241981,-460.0,0.00019627,2]
[374622696,1753384241992,-460.0,0.00019627,2]
[374622697,1753384242003,-526.29,0.00019627,2]
[374622698,1753384242012,-5901.46,0.00019627,2]
[374622699,1753384242022,-463.11950371,0.00019627,2]
[374622700,1753384242031,-460.0,0.00019627,2]
[374622701,1753384242041,-460.0,0.00019627,2]
[374622702,1753384242050,-460.0,0.00019627,2]
[374622703,1753384242059,-460.0,0.00019627,2]
[374622704,1753384242070,-460.0,0.00019627,2]
[374622705,1753384242079,-460.0,0.00019627,2]
[374622706,1753384242089,-460.0,0.00019627,2]
[374622707,1753384242100,-460.0,0.00019627,2]
[374622708,1753384242110,-512.05339899,0.00019627,2]
[374622709,1753384242119,-460.0,0.00019627,2]
[374622710,1753384242128,-460.0,0.00019627,2]
[374622711,1753384242136,-460.0,0.00019627,2]
[374622712,1753384242144,-460.0,0.00019627,2]
[374622713,1753384242154,-460.0,0.00019627,2]
[374622714,1753384242165,-1225.72,0.00019627,2]
[374622715,1753384242174,-1125.09,0.00019627,2]
[374622716,1753384242183,-3762.69,0.00019627,2]
[374622717,1753384242192,-460.0,0.00019627,2]
[374622718,1753384242202,-460.0,0.00019627,2]
[374622719,1753384242211,-460.0,0.00019627,2]
[374622720,1753384242220,-435.5486287,0.00019627,2]
[374622721,1753384242230,-1612.68,0.00019627,2]
[374622722,1753384242238,-460.0,0.00019627,2]
[374622723,1753384242248,-460.0,0.00019627,2]
[374622724,1753384242258,-946.17,0.00019627,2]
[374622725,1753384242267,-462.68867771,0.00019627,2]
[374622726,1753384242278,-460.0,0.00019627,2]
[374622727,1753384242286,-485.42774486,0.00019627,2]
[374622728,1753384242293,-460.0,0.00019627,2]
[374622729,1753384242299,-460.0,0.00019627,2]
[374622730,1753384242306,-460.0,0.00019627,2]
[374622731,1753384242313,-1815.56,0.00019627,2]
[374622732,1753384242319,-460.0,0.00019627,2]
[374622733,1753384242327,-460.0,0.00019627,2]
[374622734,1753384242334,-460.0,0.00019627,2]
[374622735,1753384242340,-460.71413138,0.00019627,2]
[374622736,1753384242347,-5542.35,0.00019627,2]
[374622737,1753384242354,-460.0,0.00019627,2]
[374622738,1753384242362,-460.0,0.00019627,2]
[374622739,1753384242368,-1315.25,0.00019627,2]
[374622740,1753384242375,-460.0,0.00019627,2]
[374622741,1753384242381,-460.0,0.00019627,2]
[374622742,1753384242389,-460.0,0.00019627,2]
[374622743,1753384242396,-508.07184855,0.00019627,2]
[374622744,1753384242405,-522.07,0.00019627,2]
[374622745,1753384242415,-500.55402568,0.00019627,2]
[374622746,1753384242426,-597.3,0.00019627,2]
[374622747,1753384242435,-460.0,0.00019627,2]
[374622748,1753384242445,-5162.43,0.00019627,2]
[374622749,1753384242456,-460.0,0.00019627,2]
[374622750,1753384242467,-946.41,0.00019627,2]
[374622751,1753384242476,-460.0,0.00019627,2]
[374622752,1753384242486,-2648.97,0.00019627,2]
[374622753,1753384242497,-499.36,0.00019627,2]
[374622754,1753384242510,-436.1817012,0.00019627,2]
[374622755,1753384242519,-738.92,0.00019627,2]
[374622756,1753384242529,-318.81973455,0.00019673,2]
[374622757,1753384242538,-547.08361476,0.00019673,2]
[374622758,1753384242549,-548.06828774,0.00019673,2]
[374622759,1753384242558,-503.48270501,0.00019673,2]
[374622760,1753384242568,-500.0,0.00019673,2]
[374622761,1753384242578,-508.41565789,0.00019673,2]
[374622762,1753384242588,-500.0,0.00019673,2]
[374622763,1753384242598,-500.0,0.00019673,2]
[374622764,1753384242608,-371.51733864,0.00019673,2]
[374622765,1753384242619,-500.0,0.00019673,2]
[374622766,1753384242628,-504.30457904,0.00019673,2]
[374622767,1753384242729,-643.73387342,0.00019673,2]
[374622768,1753384242739,-500.0,0.00019673,2]
[374622769,1753384242748,-500.0,0.00019673,2]
[374622770,1753384242758,-500.0,0.00019673,2]
[374622771,1753384242767,-179.16878495,0.00019673,2]
[374622772,1753384242776,-500.0,0.00019673,2]
[374622773,1753384242786,-500.0,0.00019673,2]